bitfinex-derivatives/quotes_SOLF0:USTF0_20240816
["timestamp","ask_amount","ask_price","bid_price","bid_amount"]
[1723814350726,3.5424,141.11,141.1,0.04486335]
[1723814351236,0.04704343,141.12,141.1,0.04486335]
[1723814351733,50.8,141.11,140.8,10.6503]
[1723814351935,50.84704343,141.12,140.8,10.6503]
[1723814351936,50.8,141.1,140.98,50.8]
[1723814352134,50.8,141.1,140.96,2.5763]
[1723814352345,50.8,141.07,140.96,2.5763]
[1723814352825,54.344,141.05,140.96,2.5763]
[1723814353026,50.8,141.07,140.96,2.5763]
[1723814353535,0.05432762,141.03,141.0,0.05317553]
[1723814353735,50.8,141.02,141.0,0.05317553]
[1723814353930,3.5449,141.01,141.0,0.05317553]
[1723814354127,50.8,141.02,140.96,2.5763]
[1723814354538,54.39412452,141.02,140.99,0.05301955]
[1723814354742,50.84922452,141.02,140.99,0.05301955]
[1723814355040,50.8,141.0,140.99,0.05301955]
[1723814355633,50.8,141.0,140.94,3.5466]
[1723814355939,50.8,140.97,140.89,1.3066]
[1723814356140,0.04922452,141.02,140.88,1.3239]
[1723814356341,50.8,141.01,140.88,52.1239]
[1723814356838,7.069,141.09,140.88,52.1239]
[1723814356839,50.8,141.09,140.95,50.8]
[1723814357036,50.8,141.09,140.98,50.8]
[1723814357237,50.8,141.11,140.99,1.2551]
[1723814357548,31.81214135,141.21,140.99,1.2551]
[1723814357549,50.8,141.16,141.03,50.8]
[1723814357747,50.8,141.16,141.05,50.8]
[1723814357939,0.05330137,141.06,141.04,0.04991471]
[1723814358242,3.5421,141.13,141.08,3.543]
[1723814358436,50.8,141.14,141.0,50.8]
[1723814358832,50.8,141.11,140.99,1.2551]
[1723814359434,0.04914196,141.06,141.04,0.04682428]
[1723814359839,50.84914196,141.06,141.04,0.00682428]
[1723814360031,50.8,141.06,140.99,1.2551]
[1723814360434,50.8,141.11,140.99,1.2551]
[1723814360634,50.8,141.14,141.02,50.8]
[1723814361035,0.05163503,141.09,141.07,0.05120327]
[1723814361440,50.8,141.11,141.07,0.05120327]
[1723814361635,50.8,141.13,141.07,0.05120327]
[1723814361844,0.05042688,141.09,141.07,0.05120327]
[1723814362143,50.8,141.18,141.07,50.85039079]
[1723814362343,50.8,141.21,141.09,50.8]
[1723814362645,50.8,141.21,141.1,1.3529]
[1723814362846,50.8,141.23,141.12,50.8]
[1723814363139,0.04750982,141.19,141.17,3.5408]
[1723814363443,0.04750982,141.19,141.16,0.0520507]
[1723814363644,54.38800982,141.19,141.16,0.0520507]
[1723814363842,50.84750982,141.19,141.16,0.0520507]
[1723814364234,3.5409,141.17,141.16,0.0520507]
[1723814364640,50.84750982,141.19,141.16,0.0520507]
[1723814364833,0.04750982,141.19,141.16,0.0520507]
[1723814365545,50.84750982,141.19,141.16,0.0520507]
[1723814365937,0.04750982,141.19,141.16,0.0520507]
[1723814366348,0.04750982,141.19,141.18,3.5407]
[1723814366643,50.8,141.23,141.16,0.0520507]
[1723814366851,54.3387,141.26,141.16,0.0520507]
[1723814367050,54.3387,141.26,141.14,50.8]
[1723814367238,29.6721,141.32,141.16,50.8]
[1723814367239,50.8,141.28,141.16,50.8]
[1723814367442,28.32,141.32,141.19,50.8]
[1723814367443,7.069,141.3,141.19,50.8]
[1723814367847,28.32,141.42,141.23,50.8]
[1723814368038,50.8,141.37,141.24,2.5582]
[1723814368242,50.8,141.34,141.24,2.5582]
[1723814368439,0.04793162,141.26,141.24,2.5582]
[1723814368648,50.8,141.32,141.24,1.2894]
[1723814368846,50.8,141.29,141.24,1.2894]
[1723814369047,50.8,141.25,141.18,1.2688]
[1723814369543,50.8,141.33,141.18,1.2688]
[1723814369544,50.8,141.29,141.18,1.2688]
[1723814369745,50.8,141.29,141.18,52.0688]
[1723814370051,50.8,141.29,141.18,1.2688]
[1723814370248,0.05138086,141.23,141.2,0.04976933]
[1723814370449,50.8,141.33,141.22,50.8]
[1723814370647,50.8,141.4,141.29,3.5379]
[1723814370648,3.5368,141.34,141.29,3.5379]
[1723814371172,50.8,141.4,141.2,0.04976933]
[1723814371173,50.8,141.31,141.2,50.84976933]
[1723814371363,50.8,141.31,141.2,50.8]
[1723814371647,50.8,141.33,141.2,50.8]
[1723814371854,50.8,141.33,141.28,3.538]
[1723814372054,50.8,141.36,141.22,50.8]
[1723814372255,3.5367,141.34,141.29,3.5378]
[1723814372451,50.8,141.36,141.29,3.5378]
[1723814372953,50.8,141.36,141.24,0.04908438]
[1723814372954,50.8,141.33,141.24,0.04908438]
[1723814373153,50.8,141.33,141.18,1.2688]
[1723814373154,50.8,141.28,141.18,1.2688]
[1723814373351,50.8,141.26,141.18,1.2688]
[1723814373559,54.45780498,141.33,141.13,1.2786]
[1723814373560,50.8,141.23,141.13,1.2786]
[1723814373856,3.54,141.21,141.13,1.2786]
[1723814374353,3.5398,141.22,141.13,1.2786]
[1723814374592,0.05325047,141.19,141.16,0.05409428]
[1723814375149,50.85325047,141.19,141.16,0.05409428]
[1723814375344,50.85325047,141.19,141.13,1.2786]
[1723814375345,54.3405,141.19,141.13,1.2786]
[1723814375657,50.8,141.19,141.13,1.2786]
[1723814375851,54.38972486,141.19,141.16,0.0451637]
[1723814376051,50.84922486,141.19,141.16,0.0451637]
[1723814376555,54.3409,141.17,141.16,0.0451637]
[1723814376759,50.84922486,141.19,141.16,0.0451637]
[1723814377059,0.04922486,141.19,141.16,3.5861637]
[1723814377256,0.04922486,141.19,141.16,0.0451637]
[1723814377760,50.84922486,141.19,141.16,0.0451637]
[1723814378249,54.3409,141.17,141.16,0.0451637]
[1723814378657,54.3409,141.17,141.1,3.5425]
[1723814378658,3.5416,141.15,141.1,3.5425]
[1723814378955,50.8,141.17,141.07,1.3253]
[1723814379151,50.84922486,141.19,141.07,1.3253]
[1723814379353,50.8,141.19,141.07,1.3253]
[1723814379751,50.8,141.19,141.12,3.542]
[1723814380060,21.109,141.23,141.07,1.3253]
[1723814380061,50.8,141.16,141.07,1.3253]
[1723814380356,21.109,141.23,141.12,0.04563152]
[1723814380357,0.04800378,141.14,141.12,0.04563152]
[1723814380748,50.8,141.19,141.1,3.5426]
[1723814381054,50.8,141.16,141.07,1.3253]
[1723814381356,21.109,141.23,141.12,0.04846076]
[1723814381357,3.5421,141.13,141.12,0.04846076]
[1723814381954,50.8,141.14,141.01,52.135]
[1723814382154,50.8,141.11,141.01,52.135]
[1723814382548,50.8,141.16,141.06,0.05242295]
[1723814383057,0.05300984,141.07,141.05,3.5437]
[1723814383257,50.8,141.11,141.05,3.5437]
[1723814383258,50.8,141.11,141.1,0.05379882]
[1723814383457,50.8,141.11,141.01,1.335]
[1723814383759,50.8,141.14,141.01,1.335]
[1723814383956,3.5416,141.15,141.05,0.05177455]
[1723814384154,0.05299179,141.09,141.05,0.05177455]
[1723814384353,0.05299179,141.09,141.07,3.5434]
[1723814384553,50.8,141.13,141.07,3.5434]
[1723814384554,3.5426,141.11,141.07,3.5434]
[1723814384755,50.8,141.13,141.06,0.05130832]
[1723814384957,0.05336039,141.09,141.06,0.05130832]
[1723814385657,50.8,141.15,141.03,50.8]
[1723814385960,50.8,141.15,141.07,3.5432]
[1723814386262,0.04500049,141.09,141.06,0.05430135]
[1723814386856,50.8,141.13,141.01,52.135]
[1723814386857,54.342,141.13,141.09,3.5428]
[1723814387056,0.05150834,141.09,141.06,0.05441481]
[1723814387559,50.8,141.15,141.06,0.05080073]
[1723814387749,50.8,141.15,141.08,3.5432]
[1723814387750,0.0499572,141.09,141.08,3.5432]
[1723814387957,50.8,141.15,141.03,50.8]
[1723814388156,0.04524456,141.1,141.07,0.04711027]
[1723814388761,1.2465,141.18,141.07,0.04711027]
[1723814388762,50.8,141.2,141.08,50.8]
[1723814388960,3.5406,141.19,141.08,50.8]
[1723814389353,1.2633,141.25,141.12,50.8]
[1723814389663,7.069,141.28,141.13,1.3076]
[1723814389664,50.8,141.22,141.13,1.3076]
[1723814389961,50.8,141.24,141.13,52.1076]
[1723814390160,0.04737024,141.2,141.17,0.04626589]
[1723814390560,0.04737024,141.2,141.19,3.5404]
[1723814390749,8.3663,141.32,141.17,0.04626589]
[1723814390750,50.8,141.29,141.17,0.04626589]
[1723814390956,50.8,141.29,141.18,50.8]
[1723814391257,50.8,141.32,141.2,50.8]
[1723814391654,3.5381,141.29,141.18,50.8]
[1723814391859,50.8,141.3,141.18,50.8]
[1723814392064,50.8,141.27,141.16,13.62]
[1723814392359,0.05245982,141.25,141.22,0.04512364]
[1723814392565,0.05245982,141.25,141.22,50.84512364]
[1723814392871,50.8,141.37,141.24,50.8]
[1723814393158,50.8,141.37,141.31,3.5373]
[1723814393159,3.5363,141.36,141.31,3.5373]
[1723814393356,50.8,141.37,141.23,1.349]
[1723814393357,50.8,141.35,141.23,1.349]
[1723814393769,50.8,141.35,141.23,52.149]
[1723814394177,3.5366,141.35,141.3,3.5376]
[1723814394361,3.5366,141.35,141.23,52.149]
[1723814394568,50.8,141.39,141.28,50.8]
[1723814394876,50.8,141.39,141.25,13.2]
[1723814395070,0.04657877,141.3,141.28,0.04558447]
[1723814395855,0.04657877,141.3,141.29,3.5379]
[1723814396056,50.8,141.35,141.28,0.04558447]
[1723814396367,50.8,141.39,141.28,50.8]
[1723814396659,1.2596,141.4,141.28,50.8]
[1723814397061,0.05252281,141.31,141.3,0.05304461]
[1723814397960,50.8,141.34,141.24,52.0652]
[1723814398161,50.8,141.34,141.29,3.5377]
[1723814398465,50.8,141.32,141.24,1.2652]
[1723814398659,50.8507528,141.32,141.29,0.05447606]
[1723814398864,50.8,141.3,141.2,1.2462]
[1723814399163,50.8,141.28,141.18,1.3079]
[1723814399761,3.539,141.25,141.18,1.3079]
[1723814400164,50.8,141.25,141.12,52.1351]
[1723814400366,50.8,141.25,141.12,53.443]
[1723814400862,0.05332455,141.23,141.22,0.05029297]
[1723814401265,0.05332455,141.23,141.22,3.58999297]
[1723814402061,0.05332455,141.23,141.22,0.05029297]
[1723814402362,50.8,141.27,141.15,50.8]
[1723814402563,50.8,141.27,141.13,50.8]
[1723814402866,50.8,141.25,141.13,50.8]
[1723814403069,0.05178649,141.24,141.21,0.04742439]
[1723814403670,0.05178649,141.24,141.13,50.8]
[1723814403866,13.2,141.29,141.13,50.8]
[1723814403867,3.5396,141.23,141.13,50.8]
[1723814404077,50.8,141.25,141.13,50.8]
[1723814404378,3.5397,141.22,141.21,0.05159333]
[1723814404571,0.04536373,141.24,141.21,0.05159333]
[1723814404770,0.04536373,141.24,141.23,3.5394]
[1723814404970,1.3357,141.28,141.16,50.8]
[1723814405166,50.8,141.27,141.16,50.8]
[1723814405366,1.3357,141.28,141.12,2.643]
[1723814405367,3.5401,141.21,141.12,2.643]
[1723814405565,50.85198349,141.25,141.12,2.643]
[1723814405977,50.8,141.27,141.16,50.8]
[1723814406264,0.0525343,141.2,141.15,0.04587427]
[1723814406470,0.0525343,141.2,141.12,1.3079]
[1723814406670,50.8,141.22,141.12,1.3079]
[1723814406866,50.8,141.22,141.17,3.5407]
[1723814407062,50.8,141.22,141.16,0.04814524]
[1723814407261,0.04539963,141.17,141.16,3.58934524]
[1723814407464,1.3357,141.28,141.16,50.84814524]
[1723814407677,37.93081972,141.73,141.16,50.84814524]
[1723814407678,50.8,141.32,141.19,50.8]
[1723814408566,52.1762,141.34,141.19,50.8]
[1723814408769,1.3762,141.34,141.24,50.8]
[1723814408972,1.3762,141.34,141.24,0.04682934]
[1723814408973,0.04523026,141.27,141.24,0.04682934]
[1723814409373,1.3762,141.34,141.24,3.539]
[1723814409374,50.8,141.31,141.24,3.539]
[1723814409571,50.8,141.31,141.2,1.3167]
[1723814409773,50.8,141.26,141.24,0.05273362]
[1723814409974,3.5399,141.22,141.12,14.0879]
[1723814410170,50.8,141.23,141.12,14.0879]
[1723814410472,54.3397,141.23,141.12,14.0879]
[1723814410970,50.8,141.2,141.12,14.0879]
[1723814411170,3.5407,141.18,141.16,0.04788933]
[1723814411370,0.05398153,141.19,141.16,0.04788933]
[1723814411570,50.8,141.2,141.08,2.6127]
[1723814412075,0.05301592,141.19,141.16,0.05310092]
[1723814412267,12.78,141.23,141.16,0.05310092]
[1723814412268,63.58,141.23,141.16,0.05310092]
[1723814412471,50.8,141.21,141.09,50.8]
[1723814412678,3.59319143,141.19,141.18,0.05204345]
[1723814412975,0.05279143,141.19,141.15,3.5413]
[1723814413275,50.8,141.18,141.08,2.6127]
[1723814413481,50.8,141.18,141.13,3.5418]
[1723814413687,50.8,141.18,141.06,1.304]
[1723814413872,3.5417,141.14,141.06,1.304]
[1723814414072,0.05153076,141.13,141.11,0.0532346]
[1723814415081,0.05153076,141.13,141.11,3.5954346]
[1723814415285,0.05153076,141.13,141.11,0.0532346]
[1723814416090,3.543,141.09,141.01,1.3347]
[1723814416305,50.8,141.12,141.01,1.3347]
[1723814416579,3.5428,141.1,141.05,3.5438]
[1723814416777,50.8,141.12,141.05,3.5438]
[1723814416979,54.3423,141.12,141.01,1.3347]
[1723814417175,63.2,141.14,141.01,52.1347]
[1723814417381,50.8,141.14,141.03,50.8]
[1723814417582,50.8,141.16,141.11,3.5423]
[1723814417884,50.8,141.16,141.07,0.05363388]
[1723814417885,0.04533688,141.08,141.07,0.05363388]
[1723814418279,50.8,141.16,141.03,50.8]
[1723814418476,50.8,141.16,141.06,0.04871386]
[1723814418677,0.04582037,141.09,141.08,3.5432]
[1723814418875,0.04582037,141.09,141.06,0.04871386]
[1723814419076,50.8,141.14,141.01,52.1347]
[1723814419676,0.0514144,141.09,141.06,0.05301872]
[1723814420485,0.0514144,141.09,141.08,3.5432]
[1723814420686,50.8,141.18,141.08,50.8]
[1723814420990,50.8,141.21,141.1,50.8]
[1723814421186,13.6915,141.22,141.1,50.8]
[1723814421385,3.5404,141.2,141.15,3.5412]
[1723814421580,3.5404,141.2,141.1,50.8]
[1723814421581,50.8,141.18,141.05,1.3397]
[1723814421980,50.8,141.18,141.11,3.5422]
[1723814422193,50.8,141.18,141.06,50.8]
[1723814422393,50.8,141.15,141.1,0.05384727]
[1723814422582,50.8,141.13,141.1,0.05384727]
[1723814422885,50.8,141.13,141.01,52.1347]
[1723814423187,50.84508081,141.13,141.01,1.3347]
[1723814423883,50.8,141.1,141.01,1.3347]
[1723814424277,50.8,141.1,141.04,3.544]
[1723814424278,3.5432,141.09,141.04,3.544]
[1723814424475,0.05428264,141.08,141.06,0.05233595]
[1723814424681,3.59768264,141.08,141.06,0.05233595]
[1723814424881,50.85428264,141.08,141.06,0.05233595]
[1723814425084,50.85428264,141.08,140.94,1.2795]
[1723814425283,50.8,141.02,140.94,1.2795]
[1723814425684,50.8,141.0,140.87,50.8]
[1723814425986,63.2,141.05,140.86,1.2795]
[1723814425987,50.8,140.98,140.86,1.2795]
[1723814426389,0.04860576,140.95,140.92,0.04560026]
[1723814428595,0.04860576,140.95,140.94,3.5467]
[1723814429488,0.04860576,140.95,140.93,3.5469]
[1723814429685,0.04860576,140.95,140.92,0.04560026]
[1723814430094,0.04860576,140.95,140.94,3.5467]
[1723814431701,0.04860576,140.95,140.92,0.04560026]
[1723814432394,57.869,141.07,140.94,50.8]
[1723814432597,50.8,141.07,140.94,50.8]
[1723814432791,13.3487,141.11,140.97,50.8]
[1723814433094,13.3487,141.11,141.0,50.8]
[1723814433295,13.3487,141.11,141.05,3.5438]
[1723814433798,0.05131429,141.07,141.05,3.5439]
[1723814433994,0.05131429,141.07,141.04,0.05413276]
[1723814434197,0.05131429,141.07,140.96,1.3654]
[1723814434198,3.5446,141.03,140.96,1.3654]
[1723814434393,50.8,141.02,140.96,1.3654]
[1723814434601,50.8,141.02,140.9,50.8]
[1723814434800,3.5453,141.0,140.95,3.5463]
[1723814434996,50.8,141.02,140.88,52.1654]
[1723814435395,0.04915619,140.96,140.94,0.04583248]
[1723814435899,0.05390432,140.96,140.94,0.04583248]
[1723814436596,3.5465,140.95,140.85,64.1668]
[1723814436998,3.5465,140.95,140.9,3.5475]
[1723814437199,50.8,140.98,140.85,1.3668]
[1723814437409,50.8,141.0,140.86,50.8]
[1723814437604,50.8,141.0,140.93,3.5468]
[1723814437804,3.5459,140.98,140.93,3.5468]
[1723814437999,50.8,141.0,140.86,50.8]
[1723814438305,3.547,140.93,140.92,0.04747351]
[1723814438499,3.547,140.93,140.88,3.5481]
[1723814438896,3.547,140.93,140.82,1.3643]
[1723814439098,3.547,140.93,140.88,3.548]
[1723814439305,3.5468,140.94,140.82,1.3643]
[1723814439699,50.8,140.95,140.83,50.8]
[1723814439902,0.04718746,140.89,140.87,0.05306953]
[1723814440303,54.3457,140.98,140.87,0.05306953]
[1723814440499,0.04500726,140.89,140.87,0.05306953]
[1723814440704,0.04500726,140.89,140.86,50.8]
[1723814440705,50.8,141.0,140.88,50.8]
[1723814441409,79.16,141.03,140.9,50.8]
[1723814441701,50.8,141.0,140.88,50.8]
[1723814442005,50.8,140.98,140.87,13.0878]
[1723814442207,50.8,140.98,140.84,7.0984]
[1723814442208,50.85135578,140.98,140.95,0.04792777]
[1723814442408,3.5462,140.96,140.91,3.5473]
[1723814442597,50.85135578,140.98,140.86,50.8]
[1723814442598,50.8,140.98,140.86,50.8]
[1723814442798,50.8,141.0,140.88,50.8]
[1723814443002,50.8,141.0,140.86,50.8]
[1723814443307,50.8,140.98,140.86,50.8]
[1723814443500,54.3458,140.98,140.86,50.8]
[1723814443699,0.05045348,140.94,140.92,0.05365928]
[1723814443907,0.05045348,140.94,140.93,3.547]
[1723814444114,0.05045348,140.94,140.92,0.05365928]
[1723814445499,0.05045348,140.94,140.83,50.8]
[1723814445907,3.5468,140.94,140.83,50.8]
[1723814446214,3.5468,140.94,140.9,3.5476]
[1723814446709,0.0497723,140.93,140.91,0.04504273]
[1723814446911,3.5967723,140.93,140.91,0.04504273]
[1723814447109,0.0497723,140.93,140.91,0.04504273]
[1723814447304,50.8,140.92,140.82,1.3643]
[1723814447712,50.8,140.9,140.82,1.3643]
[1723814447914,0.9584,140.97,140.79,28.32]
[1723814448204,50.8,140.87,140.76,52.3785]
[1723814448409,50.8,140.87,140.76,1.5785]
[1723814448615,3.61161077,140.88,140.8,0.0455968]
[1723814448616,0.04571803,140.83,140.8,0.0455968]
[1723814449011,0.04571803,140.83,140.8,3.5955968]
[1723814449205,0.04571803,140.83,140.8,0.0455968]
[1723814449405,0.04571803,140.83,140.82,3.5497]
[1723814449618,0.04571803,140.83,140.8,0.0455968]
[1723814450519,0.04571803,140.83,140.82,3.5497]
[1723814451414,0.04571803,140.83,140.8,0.0455968]
[1723814452509,3.5499,140.82,140.8,0.0455968]
[1723814452814,0.04571803,140.83,140.8,0.0455968]
[1723814454210,54.3499,140.82,140.8,0.0455968]
[1723814454912,0.04571803,140.83,140.8,0.0455968]
[1723814455308,50.84571803,140.83,140.72,1.5785]
[1723814455510,3.5505,140.79,140.72,1.5785]
[1723814455732,50.8,140.77,140.67,28.36]
[1723814455916,50.8,140.77,140.66,50.8]
[1723814456105,50.8,140.75,140.65,1.4414]
[1723814456406,50.8,140.73,140.65,1.4414]
[1723814456608,0.05342002,140.71,140.69,0.0499716]
[1723814457112,10.82,140.79,140.69,0.0499716]
[1723814457317,50.8,140.78,140.69,0.0499716]
[1723814457618,10.82,140.79,140.68,50.8]
[1723814457806,10.82,140.79,140.65,1.4414]
[1723814458011,10.82,140.79,140.66,50.8]
[1723814458317,50.8,140.78,140.66,50.8]
[1723814458512,0.04928878,140.73,140.71,0.05238317]
[1723814458717,0.04928878,140.73,140.71,3.60478317]
[1723814459009,0.05164648,140.73,140.71,0.05238317]
[1723814459516,0.05164648,140.73,140.72,3.5522]
[1723814460310,54.3494,140.84,140.71,50.85238317]
[1723814460509,1.4419,140.9,140.79,50.8]
[1723814460726,5.07017396,140.93,140.81,50.8]
[1723814461022,1.4419,140.97,140.83,50.8]
[1723814461222,1.4419,140.97,140.78,7.1015]
[1723814461223,1.4419,140.97,140.86,50.8]
[1723814461416,3.5467,140.94,140.89,3.5478]
[1723814461721,1.4419,140.97,140.86,50.8]
[1723814461722,0.05346519,140.93,140.9,0.05227381]
[1723814462017,0.05346519,140.93,140.9,3.59987381]
[1723814462232,0.05346519,140.93,140.9,0.05227381]
[1723814462744,50.8,140.92,140.9,0.05227381]
[1723814463107,54.3472,140.92,140.9,0.05227381]
[1723814463429,0.05346519,140.93,140.9,0.05227381]
[1723814463823,50.8,140.91,140.9,0.05227381]
[1723814464215,50.8,140.91,140.79,61.62]
[1723814464414,0.05346519,140.93,140.79,61.62]
[1723814464415,50.8,140.89,140.79,61.62]
[1723814464616,50.8,140.89,140.77,50.8]
[1723814464815,3.5484,140.88,140.77,50.8]
[1723814465019,50.8,140.89,140.77,50.8]
[1723814465621,0.0502313,140.84,140.82,0.05153289]
[1723814465825,0.0502313,140.84,140.83,3.5495]
[1723814466016,50.8,140.92,140.82,0.05153289]
[1723814466252,50.8,140.87,140.82,0.05153289]
[1723814466434,0.04520941,140.85,140.78,1.509]
[1723814466825,0.04520941,140.85,140.83,0.04783796]
[1723814467030,7.0874,141.07,140.84,50.8]
[1723814467324,50.8,140.99,140.85,50.8]
[1723814467726,50.8,140.97,140.85,50.8]
[1723814468124,50.8,141.01,140.87,50.8]
[1723814468619,3.5453,141.0,140.95,3.5463]
[1723814468821,0.05009876,140.92,140.9,0.0508005]
[1723814469127,1.4362,141.03,140.9,50.8508005]
[1723814469523,4.9808,141.03,140.98,3.5457]
[1723814470228,14.2799541,141.07,140.9,50.8]
[1723814470229,10.82,141.07,140.95,50.8]
[1723814470440,50.8,141.1,140.98,50.8]
[1723814470634,0.04907525,141.02,141.01,50.8]
[1723814470926,66.2572,141.16,141.01,50.8]
[1723814471323,66.2572,141.16,140.98,54.31642301]
[1723814471624,13.8658,141.16,141.04,50.8]
[1723814472032,50.8,141.19,141.04,50.8]
[1723814472431,50.8,141.21,141.07,50.8]
[1723814472735,0.05058087,141.11,141.09,0.05135094]
[1723814473033,50.8,141.23,141.1,61.62]
[1723814473239,50.8,141.23,141.12,50.8]
[1723814473532,5.04021815,141.25,141.16,3.541]
[1723814473727,50.8,141.23,141.16,3.541]
[1723814473922,3.5398,141.22,141.16,3.541]
[1723814474126,3.5398,141.22,141.12,50.8]
[1723814474127,1.4692,141.25,141.12,50.8]
[1723814474529,0.05069607,141.21,141.18,0.04750503]
[1723814475033,0.05069607,141.21,141.2,3.5402]
[1723814475729,0.05069607,141.21,141.18,0.04750503]
[1723814475929,50.85069607,141.21,141.18,0.04750503]
[1723814476139,50.85069607,141.21,141.13,3.5418]
[1723814476332,50.8,141.21,141.13,3.5418]
[1723814476525,50.8,141.21,141.07,61.62]
[1723814476929,50.8,141.18,141.04,50.8]
[1723814477131,50.8,141.16,141.04,50.8]
[1723814477333,0.04718489,141.12,141.1,0.04650301]
[1723814479338,0.04718489,141.12,140.95,28.34]
[1723814479339,50.8,141.11,140.95,28.34]
[1723814479546,50.8,141.11,140.97,50.8]
[1723814479842,54.3426,141.11,141.05,3.5437]
[1723814480045,50.8,141.11,141.0,50.8]
[1723814480347,3.5427,141.1,141.04,3.5442]
[1723814480739,0.0458808,141.07,141.04,0.05060844]
[1723814481542,3.5439,141.05,141.04,0.05060844]
[1723814482039,50.8,141.06,140.93,10.8]
[1723814482239,50.8,141.01,140.91,1.5554]
[1723814482439,50.8,141.01,140.88,50.8]
[1723814482638,50.8,140.99,140.86,10.8]
[1723814482840,50.8,140.97,140.86,10.8]
[1723814483038,3.5463,140.96,140.9,3.5475]
[1723814483537,0.04820038,140.94,140.91,0.04657879]
[1723814484341,0.04820038,140.94,140.91,3.59397879]
[1723814484841,0.04820038,140.94,140.91,0.04657879]
[1723814485945,10.66400038,140.94,140.91,0.04657879]
[1723814486145,0.04820038,140.94,140.91,0.04657879]
[1723814486349,3.5471,140.93,140.91,0.04657879]
[1723814486544,50.8,140.92,140.81,50.8]
[1723814486840,50.8,140.9,140.8,1.5902]
[1723814487039,3.5477,140.91,140.8,1.5902]
[1723814487236,57.869,140.92,140.81,50.8]
[1723814487442,7.069,140.92,140.81,50.8]
[1723814487653,50.8,140.92,140.81,50.8]
[1723814487946,0.05302405,140.88,140.85,0.0456908]
[1723814488149,0.05302405,140.88,140.87,3.5483]
[1723814488345,0.05302405,140.88,140.85,0.0456908]
[1723814489249,0.05302405,140.88,140.85,3.5945908]
[1723814489736,3.60142405,140.88,140.85,0.0456908]
[1723814490139,0.05302405,140.88,140.85,0.0456908]
[1723814491746,3.60142405,140.88,140.85,0.0456908]
[1723814492147,3.60142405,140.88,140.85,3.5946908]
[1723814492148,0.05302405,140.88,140.85,3.5946908]
[1723814492350,0.05302405,140.88,140.85,0.0456908]
[1723814493443,7.069,140.98,140.87,50.8]
[1723814493849,3.5473,140.92,140.87,3.5484]
[1723814494052,50.8,140.97,140.84,50.8]
[1723814494549,50.8,140.97,140.89,3.5479]
[1723814494740,0.04863146,140.92,140.89,0.047594]
[1723814495146,50.84863146,140.92,140.89,0.047594]
[1723814495346,50.8,140.95,140.82,61.34]
[1723814495545,0.04722862,140.92,140.89,0.04636513]
[1723814496648,3.59462862,140.92,140.89,0.04636513]
[1723814496860,0.04722862,140.92,140.89,0.04636513]
[1723814497739,3.59462862,140.92,140.89,0.04636513]
[1723814497944,0.04722862,140.92,140.89,0.04636513]
[1723814498354,0.04722862,140.92,140.91,3.5475]
[1723814499647,50.8,141.0,140.89,0.04636513]
[1723814500044,50.8,141.03,140.97,3.5458]
[1723814500347,50.8,141.0,140.88,50.8]
[1723814500545,50.8,141.0,140.88,60.96]
[1723814500749,3.5461,140.97,140.88,60.96]
[1723814500951,0.04521168,140.95,140.93,0.05072988]
[1723814501948,54.40452521,140.95,140.93,0.05072988]
[1723814502146,3.5472,140.93,140.88,3.5481]
[1723814502346,3.5472,140.93,140.84,1.5786]